[Event "Titled Tuesday Blitz November 08 Early 2022"]
[White "Weetik, Vjacheslav"]
[Black "Bok, Benjamin"]
[WhiteFideId "4153472"]
[BlackFideId "1017063"]
[WhiteElo "2469"]
[BlackElo "2658"]
[Result "0-1"]
[Round "11"]
[TimeControl "180+1"]
[Date "2022.11.08"]
[WhiteClock "0:00:07"]
[BlackClock "0:00:09"]

1. d4 {[%clk 0:02:59]}  Nf6 {[%clk 0:03:00]} 2. c4 {[%clk 0:02:59]}  e6 {[%clk 0:03:00]} 3. Nf3 {[%clk 0:03:00]}  d5 {[%clk 0:03:00]} 4. Nc3 {[%clk 0:03:00]}  c6 {[%clk 0:02:59]} 5. e3 {[%clk 0:03:00]}  Nbd7 {[%clk 0:02:59]} 6. Bd3 {[%clk 0:03:00]}  dxc4 {[%clk 0:02:58]} 7. Bxc4 {[%clk 0:03:01]}  b5 {[%clk 0:02:58]} 8. Be2 {[%clk 0:03:02]}  Bb7 {[%clk 0:02:54]} 9. O-O {[%clk 0:03:02]}  a6 {[%clk 0:02:54]} 10. e4 {[%clk 0:03:02]}  c5 {[%clk 0:02:50]} 11. e5 {[%clk 0:03:02]}  Nd5 {[%clk 0:02:50]} 12. a4 {[%clk 0:03:02]}  b4 {[%clk 0:02:48]} 13. Ne4 {[%clk 0:03:01]}  cxd4 {[%clk 0:02:34]} 14. Bg5 {[%clk 0:02:58]}  Qb6 {[%clk 0:02:29]} 15. a5 {[%clk 0:02:57]}  Qa7 {[%clk 0:02:29]} 16. Qd3 {[%clk 0:02:50]}  h6 {[%clk 0:02:27]} 17. Bd2 {[%clk 0:02:35]}  Be7 {[%clk 0:02:17]} 18. h4 {[%clk 0:02:19]}  O-O {[%clk 0:02:16]} 19. Rfe1 {[%clk 0:02:01]}  Rfd8 {[%clk 0:02:05]} 20. Bd1 {[%clk 0:01:57]}  Rac8 {[%clk 0:01:53]} 21. Bc2 {[%clk 0:01:51]}  Nf8 {[%clk 0:01:53]} 22. Rad1 {[%clk 0:01:35]}  Nc3 {[%clk 0:01:49]} 23. bxc3 {[%clk 0:01:01]}  dxc3 {[%clk 0:01:48]} 24. Nd6 {[%clk 0:00:41]}  cxd2 {[%clk 0:01:44]} 25. Rxd2 {[%clk 0:00:41]}  Rc3 {[%clk 0:01:39]} 26. Qe2 {[%clk 0:00:35]}  Bxf3 {[%clk 0:01:35]} 27. gxf3 {[%clk 0:00:35]}  Bxd6 {[%clk 0:01:33]} 28. exd6 {[%clk 0:00:35]}  Qc5 {[%clk 0:01:29]} 29. Red1 {[%clk 0:00:32]}  b3 {[%clk 0:01:26]} 30. Bb1 {[%clk 0:00:29]}  Qxa5 {[%clk 0:01:23]} 31. Qe4 {[%clk 0:00:25]}  Qc5 {[%clk 0:01:17]} 32. d7 {[%clk 0:00:25]}  Rc1 {[%clk 0:01:10]} 33. Kg2 {[%clk 0:00:23]}  Rxd1 {[%clk 0:01:07]} 34. Rxd1 {[%clk 0:00:24]}  Rxd7 {[%clk 0:01:00]} 35. Rxd7 {[%clk 0:00:23]}  Nxd7 {[%clk 0:01:01]} 36. Qh7+ {[%clk 0:00:23]}  Kf8 {[%clk 0:01:01]} 37. Qh8+ {[%clk 0:00:24]}  Ke7 {[%clk 0:01:02]} 38. Qxg7 {[%clk 0:00:25]}  Qe5 {[%clk 0:00:54]} 39. Qxh6 {[%clk 0:00:23]}  a5 {[%clk 0:00:47]} 40. Qd2 {[%clk 0:00:16]}  Qc5 {[%clk 0:00:33]} 41. Qf4 {[%clk 0:00:05]}  Qb4 {[%clk 0:00:23]} 42. Be4 {[%clk 0:00:05]}  b2 {[%clk 0:00:20]} 43. Qg5+ {[%clk 0:00:05]}  Nf6 {[%clk 0:00:20]} 44. Bb1 {[%clk 0:00:06]}  a4 {[%clk 0:00:19]} 45. h5 {[%clk 0:00:06]}  a3 {[%clk 0:00:10]} 46. h6 {[%clk 0:00:07]}  a2 {[%clk 0:00:05]} 47. Bxa2 {[%clk 0:00:07]}  b1=Q {[%clk 0:00:06]} 48. Bxb1 {[%clk 0:00:07]}  Qxb1 {[%clk 0:00:07]} 49. Qc5+ {[%clk 0:00:06]}  Ke8 {[%clk 0:00:07]} 50. Qc8+ {[%clk 0:00:06]}  Ke7 {[%clk 0:00:07]} 51. Qc5+ {[%clk 0:00:07]}  Kd7 {[%clk 0:00:07]} 52. Qd4+ {[%clk 0:00:06]}  Nd5 {[%clk 0:00:03]} 53. Qg7 {[%clk 0:00:06]}  Qg6+ {[%clk 0:00:02]} 54. Qxg6 {[%clk 0:00:06]}  Nf4+ {[%clk 0:00:02]} 55. Kg3 {[%clk 0:00:06]}  Nxg6 {[%clk 0:00:03]} 56. Kg4 {[%clk 0:00:07]}  Ke7 {[%clk 0:00:04]} 57. Kg5 {[%clk 0:00:07]}  e5 {[%clk 0:00:03]} 58. Kf5 {[%clk 0:00:07]}  Nh8 {[%clk 0:00:02]} 59. Kxe5 {[%clk 0:00:07]}  f6+ {[%clk 0:00:02]} 60. Kf5 {[%clk 0:00:08]}  Kf7 {[%clk 0:00:03]} 61. f4 {[%clk 0:00:07]}  Ng6 {[%clk 0:00:03]} 62. Kg4 {[%clk 0:00:07]}  Ne7 {[%clk 0:00:03]} 63. Kh5 {[%clk 0:00:07]}  Kg8 {[%clk 0:00:03]} 64. f5 {[%clk 0:00:07]}  Kh7 {[%clk 0:00:04]} 65. Kg4 {[%clk 0:00:06]}  Kxh6 {[%clk 0:00:04]} 66. Kf4 {[%clk 0:00:06]}  Kg7 {[%clk 0:00:04]} 67. Kg4 {[%clk 0:00:07]}  Kf7 {[%clk 0:00:05]} 68. Kf4 {[%clk 0:00:07]}  Nc8 {[%clk 0:00:06]} 69. Ke4 {[%clk 0:00:07]}  Nd6+ {[%clk 0:00:06]} 70. Kf4 {[%clk 0:00:08]}  Ke7 {[%clk 0:00:07]} 71. Kg4 {[%clk 0:00:08]}  Kd7 {[%clk 0:00:07]} 72. f3 {[%clk 0:00:07]}  Ke8 {[%clk 0:00:07]} 73. Kf4 {[%clk 0:00:07]}  Kf7 {[%clk 0:00:08]} 74. Kg4 {[%clk 0:00:08]}  Kg7 {[%clk 0:00:08]} 75. Kf4 {[%clk 0:00:07]}  Kh6 {[%clk 0:00:08]} 76. Kg4 {[%clk 0:00:08]}  Nc4 {[%clk 0:00:09]} 77. Kf4 {[%clk 0:00:07]}  Kh5 {[%clk 0:00:09]} 78. Ke4 {[%clk 0:00:07]}  Kg5 {[%clk 0:00:09]} 79. Kd5 {[%clk 0:00:07]}  Ne3+ {[%clk 0:00:09]} 80. Ke4 {[%clk 0:00:07]}  Nxf5 {[%clk 0:00:09]} 0-1


[Site "https://www.chess.com"]

[Event "Titled Tuesday Blitz November 08 Early 2022"]
[White "Wieczorek, Oskar"]
[Black "Chigaev, Maksim"]
[WhiteFideId "1133950"]
[BlackFideId "4108116"]
[WhiteElo "2404"]
[BlackElo "2541"]
[Result "1-0"]
[Round "11"]
[TimeControl "180+1"]
[Date "2022.11.08"]
[WhiteClock "0:00:24"]
[BlackClock "0:00:01"]

1. e4 {[%clk 0:03:00]}  c5 {[%clk 0:03:00]} 2. Nf3 {[%clk 0:03:00]}  e6 {[%clk 0:03:00]} 3. g3 {[%clk 0:03:00]}  Nc6 {[%clk 0:03:00]} 4. Bg2 {[%clk 0:03:00]}  Nf6 {[%clk 0:03:01]} 5. Nc3 {[%clk 0:03:01]}  a6 {[%clk 0:03:00]} 6. O-O {[%clk 0:03:00]}  Qc7 {[%clk 0:03:00]} 7. Re1 {[%clk 0:02:59]}  d6 {[%clk 0:02:53]} 8. d4 {[%clk 0:02:56]}  cxd4 {[%clk 0:02:54]} 9. Nxd4 {[%clk 0:02:57]}  Rb8 {[%clk 0:02:54]} 10. a4 {[%clk 0:02:41]}  Be7 {[%clk 0:02:52]} 11. Be3 {[%clk 0:02:39]}  O-O {[%clk 0:02:42]} 12. g4 {[%clk 0:02:39]}  Ne5 {[%clk 0:02:40]} 13. g5 {[%clk 0:02:38]}  Nfd7 {[%clk 0:02:36]} 14. f4 {[%clk 0:02:14]}  Nc4 {[%clk 0:02:33]} 15. Nf5 {[%clk 0:02:04]}  exf5 {[%clk 0:02:28]} 16. Nd5 {[%clk 0:02:03]}  Nxe3 {[%clk 0:01:19]} 17. Rxe3 {[%clk 0:02:01]}  Qc5 {[%clk 0:01:18]} 18. b4 {[%clk 0:01:47]}  Qa7 {[%clk 0:01:19]} 19. Nxe7+ {[%clk 0:01:41]}  Kh8 {[%clk 0:01:19]} 20. Nd5 {[%clk 0:01:14]}  fxe4 {[%clk 0:01:18]} 21. Bxe4 {[%clk 0:01:03]}  Re8 {[%clk 0:01:11]} 22. Kh1 {[%clk 0:00:53]}  Nf8 {[%clk 0:01:07]} 23. a5 {[%clk 0:00:49]}  Be6 {[%clk 0:00:24]} 24. Nb6 {[%clk 0:00:45]}  Nd7 {[%clk 0:00:09]} 25. Qd4 {[%clk 0:00:37]}  Nf8 {[%clk 0:00:03]} 26. Rae1 {[%clk 0:00:36]}  Rbd8 {[%clk 0:00:02]} 27. f5 {[%clk 0:00:34]}  Bd7 {[%clk 0:00:02]} 28. f6 {[%clk 0:00:25]}  Ne6 {[%clk 0:00:03]} 29. fxg7+ {[%clk 0:00:24]}  Kg8 {[%clk 0:00:03]} 30. Qf6 {[%clk 0:00:24]}  Qb8 {[%clk 0:00:01]} 31. Bxh7+ {[%clk 0:00:24]} 1-0


[Site "https://www.chess.com"]

[Event "Titled Tuesday Blitz November 08 Early 2022"]
[White "Wirig, Anthony"]
[Black "Jiang, Andrew"]
[WhiteFideId "615013"]
[BlackFideId "30953510"]
[WhiteElo "2487"]
[BlackElo "1868"]
[Result "1-0"]
[Round "11"]
[TimeControl "180+1"]
[Date "2022.11.09"]
[WhiteClock "0:00:09"]
[BlackClock "0:00:04"]

1. e4 {[%clk 0:03:00]}  e5 {[%clk 0:02:58]} 2. Nc3 {[%clk 0:03:01]}  Nf6 {[%clk 0:02:58]} 3. Bc4 {[%clk 0:03:01]}  Nxe4 {[%clk 0:02:56]} 4. Qh5 {[%clk 0:02:58]}  Nd6 {[%clk 0:02:55]} 5. Bb3 {[%clk 0:02:58]}  Be7 {[%clk 0:02:52]} 6. Nf3 {[%clk 0:02:55]}  Nc6 {[%clk 0:02:51]} 7. h4 {[%clk 0:02:49]}  Nd4 {[%clk 0:02:22]} 8. Nxe5 {[%clk 0:01:50]}  O-O {[%clk 0:02:05]} 9. d3 {[%clk 0:01:38]}  Bf6 {[%clk 0:01:56]} 10. Ng4 {[%clk 0:01:30]}  g6 {[%clk 0:01:43]} 11. Nxf6+ {[%clk 0:01:20]}  Qxf6 {[%clk 0:01:40]} 12. Qg5 {[%clk 0:01:17]}  Re8+ {[%clk 0:01:37]} 13. Be3 {[%clk 0:01:16]}  Qxg5 {[%clk 0:01:34]} 14. hxg5 {[%clk 0:01:17]}  N6f5 {[%clk 0:01:29]} 15. Kd2 {[%clk 0:01:12]}  Nxe3 {[%clk 0:00:35]} 16. fxe3 {[%clk 0:01:11]}  Ne6 {[%clk 0:00:33]} 17. Ne4 {[%clk 0:01:06]}  Kg7 {[%clk 0:00:32]} 18. Bxe6 {[%clk 0:00:56]}  dxe6 {[%clk 0:00:29]} 19. Nf6 {[%clk 0:00:51]}  Rh8 {[%clk 0:00:28]} 20. Rh6 {[%clk 0:00:52]}  e5 {[%clk 0:00:25]} 21. Rah1 {[%clk 0:00:50]}  Kf8 {[%clk 0:00:26]} 22. Rxh7 {[%clk 0:00:48]}  Rxh7 {[%clk 0:00:26]} 23. Rxh7 {[%clk 0:00:49]}  Ke7 {[%clk 0:00:26]} 24. Rh8 {[%clk 0:00:47]}  b6 {[%clk 0:00:24]} 25. Re8+ {[%clk 0:00:45]}  Kd6 {[%clk 0:00:23]} 26. e4 {[%clk 0:00:37]}  Bb7 {[%clk 0:00:22]} 27. Rxa8 {[%clk 0:00:37]}  Bxa8 {[%clk 0:00:23]} 28. Ke3 {[%clk 0:00:37]}  Ke6 {[%clk 0:00:20]} 29. g3 {[%clk 0:00:37]}  Bb7 {[%clk 0:00:19]} 30. c3 {[%clk 0:00:37]}  Ba8 {[%clk 0:00:19]} 31. a3 {[%clk 0:00:37]}  Bb7 {[%clk 0:00:19]} 32. d4 {[%clk 0:00:37]}  Ba8 {[%clk 0:00:17]} 33. Ng4 {[%clk 0:00:32]}  exd4+ {[%clk 0:00:15]} 34. cxd4 {[%clk 0:00:33]}  Bb7 {[%clk 0:00:15]} 35. b4 {[%clk 0:00:33]}  Kd6 {[%clk 0:00:13]} 36. d5 {[%clk 0:00:31]}  c5 {[%clk 0:00:13]} 37. dxc6 {[%clk 0:00:29]}  Bxc6 {[%clk 0:00:13]} 38. Kd4 {[%clk 0:00:29]}  Ke6 {[%clk 0:00:13]} 39. Ne5 {[%clk 0:00:27]}  Bb5 {[%clk 0:00:13]} 40. Ng4 {[%clk 0:00:24]}  Bc6 {[%clk 0:00:13]} 41. Nf6 {[%clk 0:00:24]}  Bb5 {[%clk 0:00:12]} 42. Nd5 {[%clk 0:00:24]}  Bc6 {[%clk 0:00:11]} 43. Nf4+ {[%clk 0:00:24]}  Kd6 {[%clk 0:00:11]} 44. e5+ {[%clk 0:00:25]}  Ke7 {[%clk 0:00:11]} 45. Kc4 {[%clk 0:00:25]}  a6 {[%clk 0:00:10]} 46. Kd4 {[%clk 0:00:24]}  Bb7 {[%clk 0:00:09]} 47. Nd5+ {[%clk 0:00:20]}  Ke6 {[%clk 0:00:07]} 48. Nxb6 {[%clk 0:00:17]}  Kf5 {[%clk 0:00:07]} 49. Nd7 {[%clk 0:00:15]}  Kxg5 {[%clk 0:00:08]} 50. Nf6 {[%clk 0:00:15]}  Kf5 {[%clk 0:00:06]} 51. a4 {[%clk 0:00:15]}  Ke6 {[%clk 0:00:06]} 52. b5 {[%clk 0:00:14]}  axb5 {[%clk 0:00:07]} 53. axb5 {[%clk 0:00:15]}  Bg2 {[%clk 0:00:07]} 54. Ng4 {[%clk 0:00:11]}  Bb7 {[%clk 0:00:06]} 55. Ne3 {[%clk 0:00:12]}  f6 {[%clk 0:00:04]} 56. exf6 {[%clk 0:00:11]}  Kxf6 {[%clk 0:00:04]} 57. Kc5 {[%clk 0:00:10]}  Ke5 {[%clk 0:00:05]} 58. Nc4+ {[%clk 0:00:09]}  Kf5 {[%clk 0:00:04]} 59. Nd6+ {[%clk 0:00:09]} 1-0


[Site "https://www.chess.com"]

[Event "Titled Tuesday Blitz November 08 Early 2022"]
[White "Zaichenko, Daria"]
[Black "Baches Garcia, Guillermo"]
[WhiteFideId "4197453"]
[BlackFideId "2209764"]
[WhiteElo "2039"]
[BlackElo "2450"]
[Result "1-0"]
[Round "11"]
[TimeControl "180+1"]
[Date "2022.11.09"]
[WhiteClock "0:00:30"]
[BlackClock "0:00:07"]

1. e4 {[%clk 0:03:00]}  c5 {[%clk 0:03:00]} 2. Nf3 {[%clk 0:03:00]}  d6 {[%clk 0:03:00]} 3. d4 {[%clk 0:03:00]}  cxd4 {[%clk 0:03:01]} 4. Nxd4 {[%clk 0:03:01]}  Nf6 {[%clk 0:03:02]} 5. Nc3 {[%clk 0:03:00]}  a6 {[%clk 0:03:02]} 6. Be3 {[%clk 0:02:57]}  e5 {[%clk 0:03:01]} 7. Nb3 {[%clk 0:02:57]}  Be6 {[%clk 0:03:00]} 8. f3 {[%clk 0:02:57]}  Nbd7 {[%clk 0:03:00]} 9. a4 {[%clk 0:02:56]}  h5 {[%clk 0:02:57]} 10. Qd2 {[%clk 0:02:56]}  Rc8 {[%clk 0:02:53]} 11. Nd5 {[%clk 0:02:55]}  Bxd5 {[%clk 0:02:49]} 12. exd5 {[%clk 0:02:55]}  Nb6 {[%clk 0:02:48]} 13. Bxb6 {[%clk 0:02:45]}  Qxb6 {[%clk 0:02:48]} 14. g3 {[%clk 0:02:27]}  g6 {[%clk 0:02:37]} 15. a5 {[%clk 0:02:27]}  Qa7 {[%clk 0:02:26]} 16. Bh3 {[%clk 0:02:23]}  Bh6 {[%clk 0:02:22]} 17. Qe2 {[%clk 0:02:07]}  Rc7 {[%clk 0:02:05]} 18. c4 {[%clk 0:02:00]}  O-O {[%clk 0:01:57]} 19. Kf1 {[%clk 0:01:53]}  e4 {[%clk 0:01:47]} 20. f4 {[%clk 0:01:48]}  Re8 {[%clk 0:01:41]} 21. Kg2 {[%clk 0:01:47]}  e3 {[%clk 0:01:36]} 22. Rac1 {[%clk 0:01:42]}  Ne4 {[%clk 0:01:26]} 23. f5 {[%clk 0:01:33]}  Rce7 {[%clk 0:01:17]} 24. fxg6 {[%clk 0:01:29]}  fxg6 {[%clk 0:01:18]} 25. Be6+ {[%clk 0:01:29]}  Kg7 {[%clk 0:01:16]} 26. Rhf1 {[%clk 0:01:25]}  Nf2 {[%clk 0:01:14]} 27. c5 {[%clk 0:01:13]}  dxc5 {[%clk 0:01:07]} 28. Nxc5 {[%clk 0:01:12]}  b6 {[%clk 0:01:00]} 29. Rxf2 {[%clk 0:00:55]}  exf2 {[%clk 0:00:57]} 30. Qe5+ {[%clk 0:00:55]}  Kh7 {[%clk 0:00:52]} 31. Ne4 {[%clk 0:00:54]}  Bg7 {[%clk 0:00:42]} 32. Ng5+ {[%clk 0:00:54]}  Kh8 {[%clk 0:00:25]} 33. Qe4 {[%clk 0:00:48]}  Rxe6 {[%clk 0:00:19]} 34. Nxe6 {[%clk 0:00:40]}  Qf7 {[%clk 0:00:14]} 35. Rf1 {[%clk 0:00:36]}  bxa5 {[%clk 0:00:13]} 36. Rxf2 {[%clk 0:00:36]}  Qe7 {[%clk 0:00:11]} 37. Qxg6 {[%clk 0:00:33]}  a4 {[%clk 0:00:07]} 38. Rf7 {[%clk 0:00:30]} 1-0


[Site "https://www.chess.com"]

[Event "Titled Tuesday Blitz November 08 Early 2022"]
[White "Zaksaite, Salomeja"]
[Black "Matveeva, Olga"]
[WhiteFideId "12801496"]
[BlackFideId "24107018"]
[WhiteElo "2079"]
[BlackElo "2055"]
[Result "1-0"]
[Round "11"]
[TimeControl "180+1"]
[Date "2022.11.09"]
[WhiteClock "0:00:19"]
[BlackClock "0:00:10"]

1. e4 {[%clk 0:02:53]}  c6 {[%clk 0:03:00]} 2. d4 {[%clk 0:02:53]}  d5 {[%clk 0:03:00]} 3. exd5 {[%clk 0:02:54]}  cxd5 {[%clk 0:03:01]} 4. Bd3 {[%clk 0:02:55]}  Nf6 {[%clk 0:03:00]} 5. c3 {[%clk 0:02:54]}  Nc6 {[%clk 0:02:57]} 6. Bf4 {[%clk 0:02:53]}  Bg4 {[%clk 0:02:55]} 7. Qb3 {[%clk 0:02:51]}  Qd7 {[%clk 0:02:53]} 8. Ne2 {[%clk 0:02:49]}  e6 {[%clk 0:02:51]} 9. O-O {[%clk 0:02:48]}  Bd6 {[%clk 0:02:49]} 10. Bxd6 {[%clk 0:02:46]}  Qxd6 {[%clk 0:02:50]} 11. Qxb7 {[%clk 0:02:39]}  Rb8 {[%clk 0:02:49]} 12. Qa6 {[%clk 0:02:39]}  O-O {[%clk 0:02:34]} 13. b4 {[%clk 0:02:31]}  Rb6 {[%clk 0:02:25]} 14. Qa3 {[%clk 0:02:25]}  Ne4 {[%clk 0:02:22]} 15. f3 {[%clk 0:02:21]}  Bh5 {[%clk 0:02:04]} 16. fxe4 {[%clk 0:02:19]}  dxe4 {[%clk 0:02:05]} 17. Bc4 {[%clk 0:02:17]}  e5 {[%clk 0:02:02]} 18. d5 {[%clk 0:02:10]}  Bxe2 {[%clk 0:01:53]} 19. Bxe2 {[%clk 0:02:08]}  Qxd5 {[%clk 0:01:53]} 20. Qb3 {[%clk 0:02:04]}  Qd7 {[%clk 0:01:44]} 21. Na3 {[%clk 0:02:03]}  a5 {[%clk 0:01:34]} 22. Nc4 {[%clk 0:02:02]}  Rbb8 {[%clk 0:01:31]} 23. Rad1 {[%clk 0:02:01]}  Qa7+ {[%clk 0:01:30]} 24. Kh1 {[%clk 0:01:57]}  axb4 {[%clk 0:01:29]} 25. cxb4 {[%clk 0:01:55]}  Rxb4 {[%clk 0:01:29]} 26. Qc3 {[%clk 0:01:24]}  Qxa2 {[%clk 0:01:27]} 27. Nd2 {[%clk 0:00:46]}  e3 {[%clk 0:01:07]} 28. Qxe3 {[%clk 0:00:39]}  Rb2 {[%clk 0:01:04]} 29. Bc4 {[%clk 0:00:36]}  Qa8 {[%clk 0:00:56]} 30. Bd5 {[%clk 0:00:35]}  Qa6 {[%clk 0:00:51]} 31. Nc4 {[%clk 0:00:32]}  Rc2 {[%clk 0:00:43]} 32. Nd6 {[%clk 0:00:29]}  Nd4 {[%clk 0:00:30]} 33. Qxe5 {[%clk 0:00:22]}  Ne2 {[%clk 0:00:10]} 34. Nxf7 {[%clk 0:00:19]} 1-0


[Site "https://www.chess.com"]

[Event "Titled Tuesday Blitz November 08 Early 2022"]
[White "Zhigalko, Sergei"]
[Black "Matinian, Nikita"]
[WhiteFideId "13502956"]
[BlackFideId "24129100"]
[WhiteElo "2662"]
[BlackElo "2422"]
[Result "1-0"]
[Round "11"]
[TimeControl "180+1"]
[Date "2022.11.08"]
[WhiteClock "0:02:07"]
[BlackClock "0:02:15"]

1. e4 {[%clk 0:03:00]}  e5 {[%clk 0:03:00]} 2. Nf3 {[%clk 0:03:01]}  Nc6 {[%clk 0:03:01]} 3. Bb5 {[%clk 0:03:01]}  a6 {[%clk 0:03:01]} 4. Ba4 {[%clk 0:03:01]}  Nf6 {[%clk 0:03:00]} 5. O-O {[%clk 0:03:02]}  Be7 {[%clk 0:03:01]} 6. Re1 {[%clk 0:03:02]}  b5 {[%clk 0:03:01]} 7. Bb3 {[%clk 0:03:03]}  d6 {[%clk 0:03:02]} 8. c3 {[%clk 0:03:03]}  O-O {[%clk 0:03:03]} 9. h3 {[%clk 0:03:04]}  Nb8 {[%clk 0:03:03]} 10. d4 {[%clk 0:03:04]}  Nbd7 {[%clk 0:03:04]} 11. Nbd2 {[%clk 0:03:05]}  Bb7 {[%clk 0:03:01]} 12. Bc2 {[%clk 0:03:05]}  Re8 {[%clk 0:03:01]} 13. Nf1 {[%clk 0:03:05]}  Bf8 {[%clk 0:03:01]} 14. Ng3 {[%clk 0:03:05]}  g6 {[%clk 0:03:02]} 15. b3 {[%clk 0:03:04]}  Bg7 {[%clk 0:02:38]} 16. d5 {[%clk 0:03:02]}  c6 {[%clk 0:02:38]} 17. dxc6 {[%clk 0:02:58]}  Bxc6 {[%clk 0:02:37]} 18. Qxd6 {[%clk 0:02:59]}  Rc8 {[%clk 0:02:34]} 19. Bb2 {[%clk 0:02:41]}  Bf8 {[%clk 0:02:22]} 20. Qd2 {[%clk 0:02:38]}  Qb6 {[%clk 0:02:18]} 21. Rad1 {[%clk 0:02:32]}  Nc5 {[%clk 0:02:17]} 22. Qg5 {[%clk 0:02:27]}  h6 {[%clk 0:02:15]} 23. Qxf6 {[%clk 0:02:07]} 1-0


[Site "https://www.chess.com"]